{"text_format":"1","workbook":"xlsx","n_sheets":5,"sheets":["Interstate Widening","I-64 GAP","I-81 widening projects ","US 58","US 460 Corr. Q"],"not_rendered":{"charts":0,"images":0,"macros":0,"external_links":0,"defined_names":0,"comments":0,"pivot_tables":0},"unopened":[],"bounds":{"document_bytes":16777216,"sheet_cells":100000,"rows_first":2000,"rows_last":500,"rows_between":2000,"halvings":0,"cell_chars":16384,"cell_head_chars":4096},"cells_cut":0,"cells_raw":0,"read":"whole","date_system":"1900"}

{"sheet":"Interstate Widening","index":0,"n_rows":73,"n_cols":14,"rows_kept":73,"cut":false,"hidden":false,"merged":[]}
[null,null,"Virginia Freeway Widening Projects",null,null,"Last Update: 2-4-2026"]
[null,null,"Defined as widening a segment of a 4-lane or wider freeway ",null,null,"Author: Scott M. Kozel"]
[null,null,"UC = Under Construction","Green - recent opening",null,null,"The Interstate Highway System in Virginia is 1,118.68 miles long"]
[null,null," "]
[null,null,"Interstate Highways"]
[null,"Route","Limit","Limit","Miles","Description","Complete","Miles U.C.","Comment",null,"Summary Mileages"]
[null,64,"204.9 (just west of the Bottoms Bridge exit)","215.6 (just east of the New Kent Courthouse/Providence Forge exit)","UC","4 lanes widened to 6",2026,11,"I-64 GAP Segment A award 11-2023, $210 million",null,"Route ","Compl.","U.C."]
[null,64,"215.6 (just east of the New Kent Courthouse/Providence Forge exit)","224.3 (at the New Kent and James City County line)","UC","4 lanes widened to 6",2028,9,"I-64 GAP Segment B - u.c. as of 5-30-2025",null,64,{"$f":"SUM(E7:E27)","v":85},{"$f":"SUM(H7:H27)","v":49}]
[null,64,"224.3 (New Kent/James City County line)","233.0 (1.15 miles west of Route 199 (exit 234))","UC","4 lanes widened to 6",2027,9,"I-64 GAP Segment C,  $174 million design-build contract was awarded on April 16, 2024 to Allan Myers, in a joint-venture with Wagman. Const. started Nov. 10.\n",null,66,{"$f":"SUM(E28:E31)","v":52},{"$f":"SUM(H28:H31)","v":0}]
[null,64,"Tidewater Drive","Patrol Road (near I-564)","UC","6 lanes widened to 8",2026,2,"HREL Norfolk Segment 1A, Award Fall 2022, 2 mi., $163M",null,81,{"$f":"SUM(E32:E43)","v":30},{"$f":"SUM(H32:H43)","v":31}]
[null,64,"Tidewater Drive","I-264","UC","6 lanes widened to 8",2028,7,"HREL Norfolk Segment 1B, NTP Summer 2025, 7 mi., $315M",null,95,{"$f":"SUM(E44:E53)","v":159},{"$f":"SUM(H44:H53)","v":0}]
[null,64,"LaSalle Blvd.","Mallory Street  ","UC","6 lanes widened to 8",2026,2,"HREL Hampton Segment 4C, NTP Summer 2022, 2.4 mi., $313M",null,264,{"$f":"SUM(E54:E56)","v":21},{"$f":"SUM(H54:H56)","v":0}]
[null,64,"Mallory Street in Hampton","I-564","UC","4 lanes widened to 8",2026,9,"HRBT Expansion (Spr. 2027), award Oct. 2020, $3.9B",null,395,{"$f":"SUM(E57)","v":7},{"$f":"SUM(H57)","v":0}]
[null,64,"I-264/I-664 Bowers Hill","East of I-464",9,"4 lanes widened to 6",2024," ","HREL Chesapeake Segment 2A, High Rise Br., $524M. New bridge opened July 2022. All lanes open 2-18-2024",null,495,{"$f":"SUM(E58:E62)","v":42},{"$f":"SUM(H58:H62)","v":0}]
[null,64,"1.257 Miles West of Rt 199 - Lightfoot (Exit 234)","1.052 Miles West of Rt 199 - Humelsine Pkwy (Exit 242)",8,"4 lanes widened to 6",2021," ","Segment 3 -- compl. Nov. -- total $244M",null,564,{"$f":"SUM(E63)","v":3},{"$f":"SUM(H63)","v":0}]
[null,64,"I-295 at Sandston","VA-249 at Bottoms Bridge",4,"4 lanes widened to 6",2019,null,"total $50.5M",null,"TOTALS",{"$f":"SUM(L8:L15)","v":399},{"$f":"SUM(M8:M15)","v":80}]
[null,64,"1.05 Miles West of Rte 199 (Humelsine Pkwy/Marquis Ctr Pkwy)","0.54 Miles East of Rte 238 (Yorktown Rd)",7,"4 lanes widened to 6",2019,null,"Segment 2 -- total $175.8M"]
[null,64,"0.52 miles east of Route 238 (Yorktown Road)","1.55 miles west of Route 143 (Jefferson Ave)",6,"4 lanes widened to 6",2018,null,"Segment 1 -- total $114M (Interstate 64 Widening Project in York and James City counties and Newport News)",null,"Non-Int.",{"$f":"E73","v":56},0]
[null,64,"0.99 MI W RTE 623 (WB - RTE 622, EB - RTE 623)","0.38 MI W RTE 295 IN SHORT PUMP (POUNCEY TRACT RD)",4,"4 and 6 lanes widened to 6 and 8",2015,null,"total $36.9M",null,"TOTAL",{"$f":"SUM(L16,L18)","v":455},{"$f":"SUM(M16,M18)","v":80}]
[null,64,"Hampton Roads Center Parkway ","I-664",3,"6 lanes widened to 8, 10 and 12 lanes",2006,null,"Coliseum Central Project"]
[null,64,"Bland Blvd. in Newport News","Hampton Roads Center Parkway ",7,"6 lanes widened to 8",2001]
[null,64,"US-17 J. Clyde Morris Blvd.","Bland Blvd. in Newport News",4,"4 lanes widened to 6",1999,null," ",null," "]
[null,64,"I-264 in Norfolk","I-464 in Chesapeake",7,"4 lanes widened to 8",1998,null," "]
[null,64,"VA-134 Magruder Blvd.","US-17 J. Clyde Morris Blvd.",4,"4 lanes widened to 6",1995]
[null,64,"I-564","South of I-264 in Norfolk",9,"6 lanes widened to 3-2-3",1992,null,"Center roadway reversible"]
[null,64,"Glenside Dr. in Henrico Co.","West of I-295 Short Pump",7,"4 lanes widened to 6",1990]
[null,64,"VA-134 Magruder Blvd.","Mallory Street in Hampton",6,"4 lanes widened to 6",1988,null,null,null,null,"   "]
[null,66,"US-29 at Gainesville","I-495 Beltway",22,"6 and 8 lanes widened to 10",2022," ","Nov. 2022 compl."]
[null,66,"Dulles Connector Road","Fairfax Drive ",4,"EBL 2 lanes widened to 3",2020,null,"Dec. 2020 compl., $85M, 3.7 mi."]
[null,66,"US-15 at Haymarket","VA-234 at Manassas",8,"4 and 6 lanes widened to 8",2016]
[null,66,"VA-234 at Manassas","I-495 Beltway",18,"4 and 6 lanes widened to 8",1997]
[null,81,"MM 243  Rockingham County","MM 247 Harrisonburg ","UC","4 lanes widened to 6",2031,7,"Award 1-2026 $218.9 million to Triton Construction Inc. of St. Albans, W.Va."]
[null,81,"MM 234.1 in Augusta County ","MM 237.9 in Rockingham County","UC","4 lanes widened to 6",2027,4,"$61.4 million contract awarded 12-2024 to Branch Civil Inc.; truck-climbing lanes near Weyers Cave"]
[null,81,"I-581 (MM 143)","US 220 / ALT US 220 Troutville (MM 150)","UC","4 lanes widened to 6",2029,7,"$479 million D/B contract award July 2024 to Branch Civil Inc., construction begin fall 2025, finish summer 2031"]
[null,81,"South of VA-55 Int. (295.4)","South of I-66 Int. (299.6)","UC","SBL widened from 2 lanes to 3 lanes",2028,4,"Award 10-2024 $58.6 million contract to Shirley Contracting Company LLC"]
[null,81,"VA-262 ","VA-262 north","UC","4 lanes widened to 6",2027,4,"Award 4-2023, $101M"]
[null,81,"Route 641 (MM 136.6)","0.3 MI north of Rt 419 (MM 141.8)","UC","4 lanes widened to 6",2026,5,"Started late 2021 - 5.1 miles, $138 M"]
[null,81,"Exit 141 (Route 419 in Salem)","Exit 143 (I-581 in Roanoke)",2,"4 lanes widened to 6",2022," ","Complete Summer 2022"]
[null,81,"US-460 at Christiansburg","VA-603 at Ironto",8,"SBL widened from 2 lanes to 3 lanes",2013]
[null,81,"US-11 north of Lexington","north",7,"NBL widened from 2 lanes to 3 lanes",2012]
[null,81,"Christiansburg US-460 area",null,3,"4 lanes widened to 6",2001]
[null,81,"VA/TN border","VA-659 in Bristol",7,"4 lanes widened to 6",1999,null,null," "]
[null,81,"West of I-81 at Fort Chiswell","I-81 at Fort Chiswell",3,"4 lanes widened to 6",1987,null,"I-81/I-77 overlap"]
[null,95,"VA-3","N. of US-17",4,"3-3-3 widened to 3-3-3-3",2023," ","I-95 Northbound Rappahannock River Crossing",null,"Complete Nov. 2023",null,null,"Tabulate"]
[null,95,"US-17 at Falmouth","VA-610 at Garrisonville",9,"6 lanes widened to 3-2-3",2023," ","Center roadway reversible","PPTA","Complete Aug. 2023",null,null,"question"]
[null,95,"South of VA-3 ","N. of US-17",5,"6 lanes widened to 3-3-3",2022,null,"I-95 Southbound Rappahannock River Crossing",null,"Complete May 2022"]
[null,95,"VA-610 at Garrisonville","VA-234 at Dumfries",9,"6 lanes widened to 3-2-3",2014,null,"Center roadway reversible","PPTA"]
[null,95,"Dale Blvd. in Prince William Co.","I-495 Beltway",12,"3-2-3 and 4-2-4 widened to 3-3-3 and 4-3-4",2014,null,"Center roadway reversible","PPTA"]
[null,95,"VA-123 at Woodbridge","VA-286 at Newington",7,"3-2-3 widened to 4-2-4",2011,null,"Center roadway reversible"]
[null,95,"VA-234 at Dumfries","VA-644 at Springfield",16,"6 lanes widened to 3-2-3",1997,null,"Center roadway reversible"," "]
[null,95,"VA-54 at Ashland ","VA-619 at Triangle",58,"4 lanes widened to 6",1987,null,null," "]
[null,95,"Crater Road in Petersburg","Maury Street in Richmond",22,"4 lanes widened to 6",1977,null,"Richmond-Petrsburg Turnpike","Toll"]
[null,95,"US-1 north of Woodbridge","14th Street Bridge",17,"4 lanes widened to 6, 3-2-3, 4-2-4, & 4-2-2-4",1975,null,"North of I-495 became I-395 in 1977","New IC"]
[null,264,"VA-168 in Norfolk","I-64 in Norfolk",5,"6 lanes widened to 8",2000,null,null," "]
[null,264,"I-64 in Norfolk","Parks Ave. in Virginia Beach",11,"4 lanes widened to 6",1982,null,"VA-44 became I-264 in 1999"]
[null,264,"I-64 in Norfolk","Rosemont Rd. in Virginia Beach",5,"6 lanes widened to 8",1993,null,"VA-44 became I-264 in 1999"]
[null,395,"Turkeycock Interchange","Eads Street in Arlington ",7,"3-2-3 and 4-2-4 widened to 3-3-3 and 4-3-4",2019," ","Center roadway reversible"]
[null,495,"VA-193 Georgetown Pike","American Legion Bridge",3,"8 lanes widened to 12",2025," ","495 Express Lanes Northern Extension (495 NEXT), $441 million, 2.5 miles",null,"Complete Nov. 2025"]
[null,495,"Eisenhower Avenue Connector","Woodrow Wilson Bridge",4,"8 and 6 lanes widened to 10 and 12",2013,null,"WWB Project"," "]
[null,495,"VA-193 Georgetown Pike","I-95/I-395",11,"8 lanes widened to 12",2012,null,"495 Express Lanes  "]
[null,495,"VA-193 Georgetown Pike","American Legion Bridge",2,"6 lanes widened to 8",1992]
[null,495,"GW Parkway","US-1 Alexandria",22,"4 and 6 lanes widened to 8",1978]
[null,564,"Navy Base Norfolk","I-64",3,"4 lanes widened to 6",1993]
[" ",null,null,"TOTAL Complete",{"$f":"SUM(E7:E63)","v":399},null,"TOTAL U.C.",{"$f":"SUM(H7:H63)","v":80}]
[]
[null,null,"Non-Interstate Freeways"]
[null,"VA-150","I-76","I-95",11,"4 lanes widened to 6",2001,null,"Chippenham Parkway"]
[null,"VA-267","VA-28","I-495",12,"4 lanes widened to 6",1995,null,"Dulles Toll Road"]
[null,"VA-267","VA-28","I-495",12,"6 lanes widened to 8",1999,null,"Dulles Toll Road"]
[null,"VA-267","VA-7","VA-28",13,"4 lanes widened to 6",2005,null,"Dulles Greenway"]
[null,"VA-76","I-195","VA-150",4,"4 and 6 lanes widened to 6 and 10",1992,null,"Powhite Parkway"]
[null,"VA-76","VA-146","VA-150",4,"6 lanes widened to 8",2012,null,"Powhite Parkway"]
[null,null," ","TOTAL",{"$f":"SUM(E67:E72)","v":56}]

{"sheet":"I-64 GAP","index":1,"n_rows":28,"n_cols":14,"rows_kept":28,"cut":false,"hidden":false,"merged":[]}
[]
[null,"I-64 GAP Widening Projects",null,null,null,"Last Update: 4-28-2025",null,null,null,null,null," "]
[]
[null,"Route","Limit","Limit","Miles","Description","Contract","Build","Miles U.C.","Prop. Cost",null,null,"Award"]
[null,64,"204.9 (just west of the Bottoms Bridge exit)","215.6 (just east of the New Kent Courthouse/Providence Forge exit)",10.7,"I-64 GAP Segment A","Design/Build","Fall 2023 to Winter 2026/27",10.7,277.8,"millions",null,210,"Awarded to Shirley Contracting Company, LLC in November 2023"]
[null,64,"215.6 (just east of the New Kent Courthouse/Providence Forge exit)","224.3 (at the New Kent and James City County line)",8.6999999999999993,"I-64 GAP Segment B","Design/Build","Late 2024 to Spring 2028",8.6999999999999993,244,"millions",null,203,"Price Proposal Opening: December 13, 2024"]
[null,64,"224.3 (New Kent/James City County line)","233.0 (1.15 miles west of Route 199 (exit 234))",8.6999999999999993,"I-64 GAP Segment C","Design/Build","Spring 2024 to Fall 2027",8.6999999999999993,231.2,"millions",null,174,"Awarded to Allan Myers, in a joint-venture with Wagman, on April 16, 2024 to Allan Myers"]
[null,null,null,null,{"$f":"SUM(E5:E7)","v":28.099999999999998},null,null,null,{"$f":"SUM(I5:I7)","v":28.099999999999998},{"$f":"SUM(J5:J7)","v":753},"total cost",null,{"$f":"SUM(M5:M7)","v":587}]
[null,null,null,null,null,null,null,null,null,{"$f":"ROUND(IMDIV(J8,E8),3)","v":26.797000000000001},"avg. per mile",null,{"$f":"ROUND(IMDIV(M8,I8),3)","v":20.89}]
[null,"I-64 OpportUNITY Connector Federal Grant - Projects | Virginia Department of Transportation (virginiadot.org)"]
[]
[null,"New Kent - I-64 GAP Segment A Widening - Projects | Virginia Department of Transportation (virginiadot.org)",null,null,null,null,null,null,null,null,null,null,null,"I-64 GAP Segment B Widening - Price Proposal Opening: December 13, 2024"]
[null,"Add one 12 foot lane and 10 foot paved shoulder on the median side, with a 30 foot clear zone.",null,null,null,null,null,null,null,null,null,null,null,"https://www.youtube.com/watch?v=6ZCJJTUCFrY&ab_channel=VDOTLIVE"]
[null,"The contract award date is anticipated for Sept. 20, 2023.",null,null,null,null,null," ",null,null,null,null,202.98,"Allan Myers, in a joint-venture with Wagman."]
[null,null,null,null,null,null,null,null,null,null,null,null,203.75,"Shirley Contracting Co. LLC"]
[null,"I-64 Gap Segment C Widening | Virginia Department of Transportation"]
[null,"New Kent/James City County line to approximately 1.15 miles west of Route 199 (exit 234)"]
[null,"Add one 12 foot lane and 10 foot paved shoulder on the median side, with a 30 foot clear zone."]
[null," "]
[null,"https://rva757connects.com/i64-gap-project",null,null,null,null,null,null,null,null,null,null,null," "]
[]
[null,"I-64 GAP Segment B; Richmond District; Total Budget $244M (Anticipated RFQ Release – Spring 2024)"]
[null,"Candidate and potential design-build projects | Virginia Department of Transportation"]
[]
[null,"I-64 Gap Segment B | Virginia Department of Transportation"]
[null,"from mile markers 215.6 (just east of the New Kent Courthouse/Providence Forge exit) to 224.3 (at the New Kent and James City County line)"]
[null,"6 bridge widening/rehabilitations (EB/WB I-64 over Route 627 (Good Hope Road), Beaverdam Creek and Wahrani Swamp)"]
[null,"8.7 miles of I-64 roadway widening and pavement rehabilitation"]

{"sheet":"I-81 widening projects ","index":2,"n_rows":107,"n_cols":29,"rows_kept":107,"cut":false,"hidden":false,"merged":[]}
[]
[null,"I-81 Widening Projects in Planning ",null,"82 miles of 3-lane widening of 2-lane roadway (41 miles of two-way equivilant)"]
[null,"1-19-2021 extract",null,null,null,"12.6 % of 325 miles"]
[null,"http://www.improve81.org/",null,"21 miles (two-way equivalent) has been widened"]
[]
[null,"Route","Limit","Limit","Miles","Description","Build","Miles U.C.","Low","High","Spread","Avg",null,null,null,null,null,null,null,"SYIP  FY 26"]
[null,81,"Christiansburg","Ironto",12.2,"NBL widened from 2 lanes to 3 lanes","4-2027 to 3-2033",0,234,283,{"$f":"SUM(J7/I7)","v":1.2094017094017093},{"$f":"AVERAGE(I7:J7)","v":258.5},"millions"]
[null,81,"Ironto ","W. of Salem",8.6999999999999993,"NBL widened from 2 lanes to 3 lanes","6-2027 to 12-2032",0,263,329,1.2509505703422052,{"$f":"AVERAGE(I8:J8)","v":296}," ",null," 116196"," FROM: MM 119.2 TO: MM 128",null,null,null,"UPC","Description","Route","District","Road System","Estimate","Previous","FY26","FY27-31","Balance"]
[null,81,"Near Salem","Near Salem",3,"4 lanes widened to 6","10-2021 to 9-2025",0,174,238,1.367816091954023,206,null,null,null,null,null,null,null,"(Values in Thousands of Dollars)"]
[null,81,"Near Salem","Near Salem",3,"4 lanes widened to 6","10-2021 to 9-2025",0,117,274,2.341880341880342,195.5,null,null,null,null,null,null,null," "]
[null,81,"N. of I-581 ","N. of US-220",7.1,"4 lanes widened to 6","11-2024 to 9-2029",0,322,476,1.4782608695652173,399,null,null,null,null,null,null,null,116196,"#I81CIP MM 116 TO MM 128 ADDING NB LANE (ID #31)",81,"Salem","Interstate",459000,36276,36030,145446,241248]
[null,81,"VA-262 south","VA-262 north",3.5,"4 lanes widened to 6","3-2024 to 7-2027",0,140,212,1.5142857142857142,176,null,null,null,null,null,null,null,null,"(Thousands)  Schedule"]
[null,81,"At Harrisonburg","At Harrisonburg",5.9,"4 lanes widened to 6","10-2024 to 10-2028",0,271,362,1.3357933579335792,316.5,null,null,null,null,null,null,null,null,"Prelim. Eng. (PE)$  25,700","Underway"]
[null,81,"VA-55 ","I-66",3.5,"SBL widened from 2 lanes to 3 lanes","1-2024 to 3-2027",0,117,171,1.4615384615384615,144,null,null,null,null,null,null,null,null,"Right of Way (RW)  $31,696","FY2030"]
[null,81,"US-50 ","VA-37 north",3.7,"4 lanes widened to 6","3-2028 to 3-2031",0,221,290,1.3122171945701357,255.5,null,null,null,null,null,null,null,null,"Construction (CN)  $401,604","FY2030"]
[null,null,null,null,{"$f":"SUM(E7:E15)","v":50.6},null,null,null,{"$f":"SUM(I7:I15)","v":1859},{"$f":"SUM(J7:J15)","v":2635},1.4174287251210329,{"$f":"SUM(L7:L15)","v":2247},"total cost",null,null,null,null,null,null,null,"Total Estimate  $459,000 "]
[null,null,null,null,null,null,null,null,{"$f":"SUM(I16/41)","v":45.341463414634148},{"$f":"SUM(J16/41)","v":64.268292682926827}," ",{"$f":"SUM(L16/41)","v":54.804878048780488},"avg. per mile"]
[null,"District: Salem",null,null,null,null,null,null,null,null,null,null,null,null,null,null,null,null,null,116197,"#I81CIP IRONTO WIDENING",81,"Salem","Interstate",926223,168845,66907,690471,"$"]
[null,"Jurisdiction: Christianburg / Montgomery County",null,null,null,"CTB 6-20-2-23",null,null,null,null,null,null,"1-2-2024 extract",null,null,null,null,null,null," "," Reconstruction w/ Added Capacity"]
[null,"Construction: April 2027 - March 2033",null,null,null,"Updated I-81 Program based on revised estimates and debt service assumptions",null,null,null,null,null,null,"Widening         ",null,null,null,null,null,null," "," FROM: MM 133.8 TO: MM 137"]
[null,"Budget: $234M - $283M",null,null,null,"• Removed UPC 116196 Add Northbound Lane Mile Marker 116 to 128 in Salem District ",null,null,null,null,null,null,"Widen to three lanes between MM116 and Exit 128         ",null,null,null,null,null,null,null,"Widening nine miles from two lanes to three lanes in both directions between exit 128 in Montgomery County and exit 137 in Roanoke County/Salem"]
[null,"Directions: NB only",null,null,null,"from the Final SYIP due to inability to fully fund the project within the six-year window",null,null,null,null,null,null,"Project ID: 31        ",null,null,null,null,null,null,null,"Prelim. Eng. (PE)  $29,500  ","Complete"]
[null,"Mile marker: 116.2 - 128.4",null,null,null,null,null,null,null,null,null,null,"UPC: 116196        ",null,null,null,null,null,null,null,"Right of Way (RW)  $18,000  ","Complete"]
[null,"Christiansburg - Ironto",null,null,null,null,null,null,null,null,null,null,"Jurisdiction: Montgomery County / Christianburg        ",null,null,null,null,null,null,null,"Construction (CN)  $878,723 ","Underway  ???",null,"Spring 2027"]
[null,null,null,null,null," ",null,null,null,null,null,null,"Construction: May 2027 - October 2034     ",null,null,null,null,null,null,null,"Total Estimate  $926,223 "," "]
[null,"District: Salem",null,null,null,null,null,null,null,null,null,null,"Budget: $359M - $434M         ",null,null,null,null,null,null,null,"The planned project along nine miles of I-81 near Ironto includes three separate segments:"]
[null,"Jurisdiction: Montgomery County / Roanoke County / Salem",null,null,null,null,null,null,null,null,null,null,"Directions: Northbound Only        ",null,null,null,null,null,null,null,"Segment N: Mile marker 133.8 to exit 137"]
[null,"Construction: June 2027 - December 2032",null,null,null,null,null,null,null,null,null,null,"Mile Marker: 116.2 - 128.4         ",null,null,null,null,null,null,null,"Segment M: Mile markers 131 to 133.8"]
[null,"Budget: $263M - $329M",null,null,null,null,null,null,null,null,null,null," ",null,null,null,null,null,null,null,"Segment S: Exit 128 to mile marker 131 "]
[null,"Directions: NB only",null,null,null,null,null,null,null,null,null,null,null,null,null,null,null,null,null,null,"https://www.vdot.virginia.gov/projects/salem-district/interstate-81-widening-exit-128-to-exit-137---montgomery-county-and-roanoke-county/"]
[null,"Mile marker: 128.4 - 137.1",null,null,null,null,null,null,null,null,null,null,"Widening         ",null,null,null,null,null,null,null," "]
[null,"Ironto - W. of Salem",null,null,null,null,null,null,null,null,null,null,"Widen to three lanes between Exit 128 and Exit 137         ",null,null,null,null,null,null,116201,"#I81CIP EXIT 143 TO EXIT 150 ADDING NB AND SB LANES (ID #40)",81,"Salem","Interstate",462354,134777,175000,152577,0]
[null,null,null,null,null,null,null,null,null,null,null,null,"Project ID: 32        ",null,null,null,null,null,null,null,"$479 million D/B contract award July 2024 to Branch Civil Inc., construction begin fall 2025, finish summer 2031"]
[null,"District: Salem",null,null,null,null,null,null,null,null,null,null,"UPC: 116197        "]
[null,"Jurisdiction: Salem / Roanoke County",null,null,null,null,null,null,null,null,null,null,"Jurisdiction: Montgomery County / Roanoke County / Salem        ",null,null,null,null,null,null,116203,"#I81CIP MM136 TO MM144 ADD LANE IN EACH DIRECTION (ID #39)",81,"Salem","Interstate",232733,232733,0,0,0]
[null,"Construction: October 2021 - September 2025",null,null,null,null,null,null,null,null,null,null,"Construction: June 2025 - May 2033     ",null,null,null,null,null,null,null,"Overpass of Route 641 (MM 136.6) TO: Ramp from NB I-81 to SB I-581 (MM 143.8)"]
[null,"Budget: $174M - $238M",null,null,null,null,null,null,null,null,null,null,"Budget: $361M - $456M         ",null,null,null,null,null,null,null,"Started late 2021 - 5.1 miles, $138 M"]
[null,"Directions: Both Directions",null,null,null,null,null,null,null,null,null,null,"Directions: Northbound Only        "]
[null,"Mile marker: 136 - 139",null,null,null,null,null,null,null,null,null,null,"Mile Marker: 128.4 - 137.1  ",null,null,null,null,null,null,116269,"#I81CIP NB & SB MM 221 TO 225, 3-LANE WIDENING (ID #61)",81,"Staunton","Interstate",140524,61409,5189,73927,"$"]
[null,"Near Salem",null,null,null,null,null,null,null,null,null,null,null,null,null,null,null,null,null,null,"VA-262 to VA-262 north  4 lanes widened to 6  Award 4-2023, $101M"]
[]
[null,"District: Salem",null,null,null,null,null,null,null,null,null,null,"Widening         ",null,null,null,null,null,null,116280,"#I81CIP NB & SB MM 242 TO 248, 3-LANE WIDENING (ID #62)",81,"Staunton","Interstate",329791,115580,8232,205978,0]
[null,"Jurisdiction: Salem / Roanoke County",null,null,null,null,null,null,null,null,null,null,"Widen to three lanes between Exit 143 and Exit 150         ",null,null,null,null,null,null,null,"The additional lanes will primarily be built to the inside (median side) between mile markers 242.0 and 248.8 in Harrisonburg and Rockingham County."]
[null,"Construction: October 2021 - September 2025",null,null,null,null,null,null,null,null,null,null,"Project ID: 40        ",null,null,null,null,null,null,null,"https://www.vdot.virginia.gov/projects/staunton-district/interstate-81-harrisonburg-area-widening-exit-243-to-exit-247/"]
[null,"Budget: $117M - $274M",null,null,null,null,null,null,null,null,null,null,"UPC: 116201        ",null,null,null,null,null,null,null,"Award 1-2026 $218.9 million to Triton Construction Inc. of St. Albans, W.Va."]
[null,"Directions: Both Directions",null,null,null,null,null,null,null,null,null,null,"Jurisdiction: Roanoke County / Botetourt County        "]
[null,"Mile marker: 139 - 142",null,null,null,null,null,null,null,null,null,null,"Construction: November 2025 - June 2032     ",null,null,null,null,null,null,116281,"#I81CIP NB&SB BRDGE REPL & 3-LANE WIDENING EXIT 317 (ID #63)",81,"Staunton","Interstate",193921,20406,9000,164515,0]
[null,"Near Salem",null,null,null,null,null,null,null,null,null,null,"Budget: $479M         ",null,null,null,null,null,null," "," Reconstruction w/ Added Capacity"]
[null,null,null,null,null,null,null,null,null,null,null,null,"Directions: Both Directions        ",null,null,null,null,null,null," "," FROM: MM 317.0 TO: MM 318.8"]
[null,"District: Salem",null,null,null,null,null,null,null,null,null,null,"Mile Marker: 144.2 - 151.3         ",null,null,null,null,null,null,null,"Prelim. Eng. (PE)  $6,987  Underway"]
[null,"Jurisdiction: Roanoke / Roanoke County",null,null,null,null,null,null,null,null,null,null,null,null,null,null,null,null,null,null,"Right of Way (RW)  $9,134  FY2027"]
[null,"Construction: November 2024 - October 2029",null,null,null,null,null,null,null,null,null,null,null,null,null,null,null,null,null,null,"Construction (CN)  $177,800  FY2027"]
[null,"Budget: $322M - $476M",null,null,null,null,null,null,null,null,null,null,"Curve Improvements         ",null,null,null,null,null,null,null,"Total Estimate  $193,921 "," "]
[null,"Directions: Both Directions",null,null,null,null,null,null,null,null,null,null,"Widening         "]
[null,"Mile marker: 144.2 - 151.3",null,null,null,null,null,null,null,null,null,null,"Project ID: 60        ",null,null,null,null,null,null,116282,"#I81CIP SB MM 200 TO 205, 3-LANE WIDENING (ID #60)",81,"Staunton","Interstate",109761,49556,19641,40564]
[null,"N. of I-581 to N. of US-220",null,null,null,null,null,null,null,null,null,null,"UPC: 116282        ",null,null,null,null,null,null,null,"Prelim. Eng. (PE)  $7,760  Underway"]
[null,null,null,null,null,null,null,null,null,null,null,null,"Jurisdiction: Rockbridge County        ",null,null,null,null,null,null,null,"Right of Way (RW)  $331  FY2028"]
[null,"District: Staunton",null,null,null,null,null,null,null,null,null,null,"Construction: September 2026 - March 2030     ",null,null,null,null,null,null,null,"Construction (CN)  $101,670  FY2029"]
[null,"Jurisdiction: Augusta County / Staunton",null,null,null,null,null,null,null,null,null,null,"Budget: $84M - $121M         ",null,null,null,null,null,null,null,"Total Estimate  $109,761 "]
[null,"Construction: March 2024 - July 2027",null,null,null,null,null,null,null,null,null,null,"Directions: Both Directions        "]
[null,"Budget: $140M - $212M",null,null,null,null,null,null,null,null,null,null,"Mile Marker: 202.0 - 204.0 Northbound, 204.5 - 195.1 Southbound         ",null,null,null,null,null,null,126389,"#I81CIP NB & SB MM 312 TO 317, 3 LANE WIDENING (ID #63)",81,"Staunton","Interstate",285948,8969,0,72675,204303]
[null,"Directions: Both Directions",null,null,null,null,null,null,null,null,null,null," ",null,null,null,null,null,null,null,"Prelim. Eng. (PE)  $8,969  Underway"]
[null,"Mile marker: 221.8 - 225.3",null,null,null,null,null,null,null,null,null,null,null,null,null,null,null,null,null,null,"Right of Way (RW)  $10,518  FY2029"]
[null,"At Staunton - VA-262 to VA-262 north",null,null,null,null,null,null,null,null,null,null,"Widening         ",null,null,null,null,null,null,null,"Construction (CN)  $266,460  FY2030"]
[null,null,null,null,null,null,null,null,null,null,null,null,"Widen to three lanes between Exit 221 and Exit 225         ",null,null,null,null,null,null,null,"Total Estimate  $285,948 "]
[null,"District: Staunton",null,null,null,null,null,null,null,null,null,null,"Project ID: 61        "]
[null,"Jurisdiction: Rockingham County / Harrisonburg",null,null,null,null,null,null,null,null,null,null,"UPC: 116269        "]
[null,"Construction: October 2024 - October 2028",null,null,null,null,null,null,null,null,null,null,"Jurisdiction: Augusta County / Staunton        "]
[null,"Budget: $271M - $362M",null,null,null,null,null,null,null,null,null,null,"Construction: April 2023 - June 2027     ",null,null,null,null,null,null,null,null," "]
[null,"Directions: Both Directions",null,null,null,null,null,null,null,null,null,null,"Budget: $140.5M         "]
[null,"Mile marker: 242.2 - 248.1",null,null,null,null,null,null,null,null,null,null,"Directions: Both Directions        "]
[null,"At Harrisonburg",null,null,null,null,null,null,null,null,null,null,"Mile Marker: 221.4 - 225.6         "]
[null,null,null,null,null,null,null,null,null,null,null,null,"Project Page:  View"]
[null,"District: Staunton"]
[null,"Jurisdiction: Shenandoah County / Warren County / Frederick County"]
[null,"Construction: January 2024 - March 2027",null,null,null,null,null,null,null,null,null,null,"Widening         "]
[null,"Budget: $117M - $171M",null,null,null,null,null,null,null,null,null,null,"Widen to three lanes between Exit 243 and Exit 247         "]
[null,"Directions: SB only",null,null,null,null,null,null,null,null,null,null,"Project ID: 62        "]
[null,"Mile marker: 299.2 - 295.7",null,null,null,null,null,null,null,null,null,null,"UPC: 116280        "]
[null,"VA-55 to I-66",null,null,null,null,null,null,null,null,null,null,"Jurisdiction: Rockingham County / Harrisonburg        "]
[null,null,null,null,null,null,null,null,null,null,null,null,"Construction: May 2025 - September 2029     "]
[null,"District: Staunton",null,null,null,null,null,null,null,null,null,null,"Budget: $322.3M         "]
[null,"Jurisdiction: Frederick County / Winchester",null,null,null,null,null,null,null,null,null,null,"Directions: Both Directions        "]
[null,"Construction: March 2028 - March 2031",null,null,null,null,null,null,null,null,null,null,"Mile Marker: 242.0 - 248.8         "]
[null,"Budget: $221M - $290M",null,null,null,null,null,null,null,null,null,null,"Project Page:  View"]
[null,"Directions: Both Directions"]
[null,"Mile marker: 313.8 - 317.5"]
[null,"US-50 to VA-37 north",null,null,null,null,null,null,null,null,null,null,"Widening         "]
[null,null,null,null,null,null,null,null,null,null,null,null,"Widen to three lanes between MM299 and MM296         "]
[null,null,null,null,null,null,null,null,null,null,null,null,"Project ID: 50        "]
[null,"Spring 2024",null,null,null,null,null,null,null,null,null,null,"UPC: 116268        "]
[null,"Improve 81 ",null,null,null,null,null,null,null,null,null,null,"Jurisdiction: Shenandoah County / Warren County        "]
[null,null,null,null,null,null,null,null,null,null,null,null,"Construction: July 2024 - September 2027     "]
[null,"The Commonwealth Transportation Board (CTB) has added a new widening to the I-81 Corridor ",null,null,null,null,null,null,null,null,null,null,"Budget: $126.2M         "]
[null,"Improvement Program (CIP), while three other projects have seen significant changes.",null,null,null,null,null,null,null,null,null,null,"Directions: Southbound Only        "]
[null,"At its December 2023 meeting, the CTB updated the program with the widening of southbound ",null,null,null,null,null,null,null,null,null,null,"Mile Marker: 299.6 - 295.4        "]
[null,"I-81 between exit 137 (Salem) and exit 128 (Ironto). The roughly $308 million project, located in "]
[null,"Roanoke and Montgomery counties, will add a third travel lane and replace several bridges."]
[null,"Following a series of traffic studies and public meetings in 2018, the I-81 Corridor Improvement ",null,null,null,null,null,null,null,null,null,null,"Widening         "]
[null,"Plan identified 106 potential construction projects. Among them were the northbound and ",null,null,null,null,null,null,null,null,null,null,"Widen to three lanes between Exit 313 and Exit 317         "]
[null,"southbound widening projects between exits 128 and 137. The northbound widening was among ",null,null,null,null,null,null,null,null,null,null,"Project ID: 63        "]
[null,"64 projects selected for funding. It is in the early stages of design and engineering, and is ",null,null,null,null,null,null,null,null,null,null,"UPC: 116281        "]
[null,"scheduled to begin construction in 2025.",null,null,null,null,null,null,null,null,null,null,"Jurisdiction: Frederick County / Winchester        "]
[null,null,116197,"FROM: MM 128 TO: MM 136",null,null,null,null,null,null,null,null,"Construction: October 2026 - January 2032     "]
[null,null,null,null,null,null,null,null,null,null,null,null,"Budget: $332.6M         "]
[null,"Route","Limit","Limit","Miles","Description","Build","Miles U.C.","Low","High","Spread","Avg"]
[null,81,"Salem (Exit 137)","Ironto (Exit 128)",11,"SBL widened from 2 lanes to 3 lanes","2025 to 2028",0," "," "," ",308,"millions"]

{"sheet":"US 58","index":3,"n_rows":51,"n_cols":21,"rows_kept":51,"cut":false,"hidden":false,"merged":[]}
[]
[null,"US 58 Hillsville - Stuart",null,"FY24 Final SYIP"]
[null,null,null,null,null,null,null,null,2018]
[null,"UPC"," 17535",null,null,null,null,null,"https://www.ctb.virginia.gov/resources/2018/mar/pres/1_route_58.pdf"]
[null,"Project"," RTE 58 - HILLSVILLE BYPASS-CORRIDOR DEV PROG-4 LANES",null,null,null,null,null,"The 36-mile section between Stuart and Hillsville in the Salem District was the last segment needed to connect the improved Route 58 corridor from the Port of Virginia to Interstate 77."]
[null,"Scope of Work"," Relocation"]
[null,"Description"," FROM: 0.160KM EAST RTE 714 TO: 0.131 KM N SOUTH INT RTE 722E)",null,null,null,null,null,"Three segments of widening have been completed."]
[null,"Length"," 8.4870 KM",null,null,null,null,null,null,null,null,null,null,null,null,2018,null,2023,null,"FY 2026 SYIP"]
[null,null,"Estimated Cost (thousands)","Schedule",null,null,null,null,"Project Length Completion Cost",null,null,null,null,null,"Miles","Cost M",null,"Cost M",null,"Cost M"]
[null,"Prelim. Eng. (PE)",5568,"Complete",null,null,null,null,"Meadows of Dan Bypass 2.7 miles May 2006 $20 M",null,null,null,null,null,2.7,20]
[null,"Right of Way (RW)",10235,"Complete",null,null,null,null,"Hillsville Bypass 5.2 miles August 2011 $106.3 M",null,null,null,null,null,5.2,106.3]
[null,"Construction (CN)",90765,"Complete",null,null,null,null,"Tri-County and Laurel Fork 8.2 miles October 2016 $120 M",null,null,null,null,null,8.1999999999999993,120]
[null,"Total Estimate",106567,null,null,null,null,null,null,null,null,null,null,null,null,{"$f":"SUM(P10:P12)","v":246.3}]
[null," ",null,null,null,null,null,null,"The three remaining projects are fully funded in the SYIP",null,null,null,null,null,null," "]
[null,"UPC"," 17536",null,null,null,null,null,null,null,null,null,null,null,null," "]
[null,"Project"," RTE 58 - CORRIDOR DEVELPMENT PROG - 4 LANES (LOVERS LEAP)",null,null,null,null,null,"Project Length Cost Funded",null,null,null,null,null,null," "]
[null,"Scope of Work"," Reconstruction w/ Added Capacity",null,null,null,null,null,"Lovers Leap 7.8 miles $258.3 M FY2021",null,null,null,null,null,7.8,258.3,null,352.4,null,352.4,"u.c."]
[null,"Description"," FROM: 0.364 Mi. E. Int. Route 610 (Cloudbreak Road) TO: 0.776 Mi. N. Stuart NCL",null,null,null,null,null,"Vesta 4 miles $98 M FY2021",null,null,null,null,null,4,98,null,335.2,null,256.10000000000002,"u.c."]
[null,"Length"," 7.4050 MI",null,null,null,null,null,"Crooked Oak 7.2 miles $168.5 M FY2023",null,null,null,null,null,7.2,168.5,null,495,null,490,"FY29"]
[null,null,"Estimated Cost (thousands)","Schedule",null,null,null,null,null,null,null,null,"TOTAL",null,{"$f":"SUM(O10:O19)","v":35.1},{"$f":"SUM(P17:P19)","v":524.79999999999995},null,{"$f":"SUM(R17:R19)","v":1182.5999999999999},null,{"$f":"SUM(T17:T19)","v":1098.5}]
[null,"Prelim. Eng. (PE)",8050,"Complete"]
[null,"Right of Way (RW)",10200,"Complete",null,null,null,null,null,null,null,null,"GRAND TOTAL",null,null,{"$f":"SUM(P13,P20)","v":771.09999999999991},null,{"$f":"SUM(P13,R20)","v":1428.8999999999999},null,{"$f":"SUM(P13,T20)","v":1344.8}]
[null,"Construction (CN)",334124,"Underway"]
[null,"Total Estimate",352375,null,null,null,null,null,"2025-03-16"]
[null," ",null,null,null,null,null,null,"https://www.vdot.virginia.gov/projects/salem-district/route-58-widening--vesta-in-patrick-county/"]
[null,"UPC"," 17537",null,null,null,null,null,"This $235 million design-build project involves widening approximately 4.5 miles of Route 58 in Patrick County from two lanes to four lanes. The project begins near the Route 58 Business eastern intersection in Meadows of Dan and ends about 0.5 mile east of Route 610 (Cloudbreak Road)."]
[null,"Project"," RTE 58 - CORRIDOR DEVELOPMENT PROG - 4 LANES (VESTA)",null,null,null,null,null,"Status: Under construction"]
[null,"Scope of Work"," Reconstruction w/ Added Capacity",null,null,null,null,null,"Estimated start date: Spring 2025"]
[null,"Description"," FROM: 0.10 MI WEST ROUTE 795 TO: 0.51 MI EAST ROUTE 610 - EAST INTX (CLOUDBREAK ROAD)",null,null,null,null,null,"Estimated completion date: Fall 2030"]
[null,"Length"," 4.5500 MI"]
[null,null,"Estimated Cost (thousands)","Schedule",null,null,null,null," "]
[null,"Prelim. Eng. (PE)",38900,"Complete",null,null,null,null,"Vesta -- Branch-Rinker D-B -- $175 million "]
[null,"Right of Way (RW)",11800,"Underway",null,null,null,null,"https://www.vdot.virginia.gov/media/vdotvirginiagov/doing-business/business-opportunities/alternative-project-delivery/price-proposals/17537---Price-Proposal---Branch.pdf"]
[null,"Construction (CN)",284500,"FY2027",null,null,null,null,"Jan. 21, 2025"]
[null,"Total Estimate",335200,null,null,null,null,null,"Under construction"]
[]
[null,"UPC"," 17534",null,null,null,null,null,"Lovers Leap in Patrick County"]
[null,"Project"," RTE 58 - CORRIDOR DEVELOPMENT PROG - 4 LANES (CROOKED OAK)",null,null,null,null,null,"https://www.vdot.virginia.gov/projects/salem-district/route-58-widening---lovers-leap-in-patrick-county-ppta-project/"]
[null,"Scope of Work"," Reconstruction w/ Added Capacity",null,null,null,null,null,"Jul. 17, 2025"]
[null,"Description"," FROM: 0.131 KILOMETER WEST ROUTE 820 TO: 0.492 KILOMETER EAST BIG REED ISLAND CREEK",null,null,null,null,null,"Status: Under construction"]
[null,"Report Note"," Balance to be determined in FY24 SYIP update",null,null,null,null,null,"Estimated start date: Spring 2025"]
[null,"Length"," 11.5060 KM",null,null,null,null,null,"Estimated completion date: Fall 2030"]
[null,null,"Estimated Cost (thousands)","Schedule"]
[null,"Prelim. Eng. (PE)",35000,"Complete",null,null,null,null,"https://www.vdot.virginia.gov/news-events/news/salem-district/traffic-alert-new-traffic-patterns-coming-on-route-58-lovers-leap-project-in-july.php"]
[null,"Right of Way (RW)",14000,"Underway",null,null,null,null,"As of June 2025, overall construction on the project is about 70 percent complete with the final completion anticipated in summer 2026."]
[null,"Construction (CN)",446000,"FY2029",null,null,null,null,"Jul. 7, 2025"]
[null,"Total Estimate",495000]
[null,null,null,null,null,null,null,null,"https://www.vdot.virginia.gov/news-events/news/salem-district/vdot-provides-update-on-route-58-lovers-leap-project.php"]
[null,null,null,null,null,null,null,null,"In spring 2022, the Virginia Department of Transportation’s (VDOT) design-build contractor Branch Civil Inc. began work on the construction phase of the $300 million project to widen Route 58 over Lovers Leap Mountain in Patrick County."]
[null,null,null,null,null,null,null,null,"Oct. 31, 2023"]
[null,null,null,null,null,null,null,null,null,"$300 M"]

{"sheet":"US 460 Corr. Q","index":4,"n_rows":38,"n_cols":2,"rows_kept":38,"cut":false,"hidden":false,"merged":[]}
[]
[]
[null,"Construction of the Route 460 Connector Phase I began Aug. 7, 2009, and was completed June 2015. VDOT said the span across Grassy Creek will open to traffic when Kentucky completes construction on adjacent Route 460 between the bridges and Elk Horn City is completed in 2020."]
[]
[null,"Details By Design"]
[null,"Located near Breaks Interstate Park, the Grassy Creek bridges are 1,700-ft.-long cast-in-place segmental bridges, each with a deck width of 43 ft. to be able to carry two lanes of traffic in each direction, with a vertical clearance of 250 ft., said a VDOT spokesperson."]
[null,"Bridge to Nowhere … Long-Finished Span May Open Soon : CEG (constructionequipmentguide.com)"]
[null,"THU JULY 23, 2020"]
[null,"Funding"]
[null,"The twin spans and a short stretch of highway connected to the southern end cost approximately $120 million. Federal funding for the project dried up before work began on the connecting roads, but construction resumed on less ambitious plans and a budget of $300 million to complete the project. VDOT's revised plans will funnel traffic off the four-lane bridge to two lanes, with climbing lanes where needed."]
[]
[null,"Current Status"]
[null,"Approximately 12 mi. of Corridor Q construction in Virginia are completed, completed to rough grade, or under construction. The final 1.6 mi. of Corridor Q construction in Virginia are currently unfunded."]
[]
[null,"Following are updates from VDOT for each phase:"]
[]
[null,"460 Connector Phase II (6.2 mi.): Construction began October 2015, completed to rough grade summer 2019. Two-lane with climbing lanes."]
[null,"121-Corridor Q Intersection (0.57 mi.): Construction began spring 2019, completed to rough grade spring 2020."]
[null,"Route 460/121 (Coalfield Expressway) — Hawks Nest (2 mi.) Construction completed to rough grade in June 2011. Two-lane with climbing lanes."]
[null,"Poplar Creek Phase A (2.9 mi.): Construction began Aug. 21, 2019. The estimated completion for construction is late 2024. Two-lane roadway with climbing lanes. Provides at grade connection with Route 604 (Poplar Creek). Includes a triple box culvert, 7 ft. by 7 ft. and 2,250 ft. in length. Under a maximum of 310 ft. of fill."]
[null,"Poplar Creek Phase B (1.6 mi.): unfunded at this time. Includes a two-lane roadway with climbing lanes as needed and will include a bridge over the Levisa Fork River. Poplar Creek Phase B will tie into U.S. Route 460 west of Grundy, and completed Corridor Q in Commonwealth."]
[null,"In addition, VDOT reported that a design contract for paving the Route 460 Connector Phase II is under way, with advertisement for paving anticipated to occur in 2021. A contract for paving of the Route 460/121 "]
[null,"intersection and Route 460/121 Hawk's Nest section is being negotiated, with paving anticipated to begin in 2021."]
[]
[]
[null,"Brochure_PCA_170130_Web.pdf (virginiadot.org)"]
[null,"CFX Project Status (virginiadot.org)"]
[]
[]
[null,"Feb. 14, 2025 extract:"]
[null,"Construction is underway for Route 460/121 - Poplar Creek Phase B (Buchanan County) and includes a new four-lane roadway and a bridge over the railroad and the Levisa Fork. The bridge will be 175-feet tall, making it the second tallest bridge in Virginia. Route 460/121 Poplar Creek B completes Corridor Q in Virginia. The project is approximately two miles long."]
[null,"The project is valued at approximately $207 million (preliminary engineering, right of way, project oversight and construction)."]
[null,"Route 460/121 Poplar Creek Phase B construction began in 2023."]
[null,"Status: Under construction"]
[null,"Estimated start date: 2023"]
[null,"Estimated completion date: 2027"]
[null,"https://www.vdot.virginia.gov/projects/bristol-district/corridor-q-route-460121-poplar-creek-phase-b-buchanan-county/"]
[null,"https://www.youtube.com/watch?v=BHE92-YmC2U&ab_channel=VirginiaDepartmentofTransportation%28VDOT%29"]